fUSD/lending_fUSD_20251210
["ID","MTS","AMOUNT","RATE_DAILY","PERIOD"]
[398045527,1765335057409,-1.86786186,0.00015896,2]
[398045528,1765335057425,-587.77687937,0.00015896,2]
[398045529,1765335057439,-274.20856458,0.00015897,2]
[398045530,1765335057468,-225.79143542,0.00015897,2]
[398045531,1765335057486,-372.65850458,0.00015897,2]
[398045532,1765335057504,-127.34149542,0.00015897,2]
[398045533,1765335057519,-524.24972471,0.00015897,2]
[398045534,1765335057535,-500.0,0.00015999,2]
[398045535,1765335057551,-459.23093575,0.00015999,2]
[398045536,1765335057569,-7092.79193125,0.00016,4]
[398045537,1765335057601,-500.0,0.00015896,2]
[398045538,1765335057615,-38.9811538,0.00016,4]
[398045539,1765335057634,-1963.0,0.00016,4]
[398045540,1765335057653,-1074.43970788,0.00016,4]
[398045561,1765336231813,-156.04438028,0.00014301,2]
[398045562,1765336231823,-150.0,0.00014301,2]
[398045563,1765336231833,-150.0,0.00014301,2]
[398045564,1765336231843,-150.0,0.00014301,2]
[398045565,1765336231852,-250.0,0.00014838,2]
[398045566,1765336231861,-200.75,0.0001492,2]
[398045567,1765336231872,-151.94048842,0.00015095,2]
[398045568,1765336231881,-544.19,0.00015095,2]
[398045569,1765336231891,-5521.0,0.000151,3]
[398045570,1765336231900,-151.94048842,0.00015145,2]
[398045571,1765336231909,-850.24,0.00015161,2]
[398045572,1765336231919,-300.0,0.00015199,2]
[398045573,1765336231929,-1200.0,0.00015199,2]
[398045574,1765336231938,-166.66,0.00015336,2]
[398045575,1765336231949,-5524.0,0.000154,5]
[398045576,1765336231958,-300.0,0.00015695,2]
[398045577,1765336231968,-3079.97784155,0.00015696,2]
[398045578,1765336231980,-467.45030931,0.00015696,2]
[398045579,1765336232002,-259.11,0.00015696,2]
[398045580,1765336232014,-593.68559843,0.00015696,2]
[398045581,1765336232063,-835.17725071,0.00015696,2]
[398045582,1765336232073,-4792.2878831,0.00015696,2]
[398045583,1765336232091,-291.96851111,0.00015696,2]
[398045586,1765336232102,-704.890961,0.00015696,2]
[398045598,1765336237828,-930.62624,0.00015696,2]
[398045599,1765336237935,-1043.27485939,0.00015696,2]
[398045600,1765336237946,-292.696336,0.00015696,2]
[398045601,1765336237990,-1769.23766179,0.00015696,2]
[398045602,1765336238001,-1850.9311271,0.00015696,2]
[398045603,1765336238013,-780.00000001,0.00015696,2]
[398045604,1765336238025,-3444.8305205,0.00015696,2]
[398045605,1765336238036,-6042.33824491,0.00015696,2]
[398045606,1765336238050,-1000.0,0.00015697,2]
[398045607,1765336238060,-200.0,0.00015769,2]
[398045608,1765336238071,-533.88981491,0.00015788,2]
[398045609,1765336238082,-153.05897419,0.00015788,2]
[398045610,1765336238092,-1000.0,0.00015788,2]
[398045611,1765336238102,-248.68508165,0.00015788,2]
[398045612,1765336238112,-710.147,0.00015795,2]
[398045613,1765336238122,-12791.22197859,0.00015795,2]
[398045614,1765336238133,-500.0,0.00015795,2]
[398045615,1765336238142,-990.5,0.00015795,2]
[398045616,1765336238152,-894.28,0.00015795,2]
[398045618,1765336238162,-829.17,0.00015795,2]
[398045620,1765336238171,-723.58,0.00015795,2]
[398045622,1765336238181,-500.0,0.00015795,2]
[398045623,1765336238192,-500.0,0.00015795,2]
[398045624,1765336238202,-1829.76,0.00015795,2]
[398045626,1765336238212,-509.42,0.00015795,2]
[398045628,1765336238221,-500.0,0.00015795,2]
[398045630,1765336238232,-500.0,0.00015795,2]
[398045632,1765336238242,-500.0,0.00015795,2]
[398045634,1765336238251,-500.0,0.00015795,2]
[398045636,1765336238262,-669.58,0.00015795,2]
[398045637,1765336238272,-500.0,0.00015795,2]
[398045639,1765336238282,-776.77,0.00015795,2]
[398045641,1765336238291,-500.0,0.00015795,2]
[398045643,1765336238301,-500.0,0.00015795,2]
[398045644,1765336238310,-500.0,0.00015795,2]
[398045645,1765336238320,-500.0,0.00015795,2]
[398045647,1765336238329,-500.0,0.00015795,2]
[398045649,1765336238338,-829.34,0.00015795,2]
[398045651,1765336238348,-679.42,0.00015795,2]
[398045653,1765336238358,-500.0,0.00015795,2]
[398045656,1765336238368,-637.3,0.00015795,2]
[398045658,1765336238378,-839.84,0.00015795,2]
[398045659,1765336238388,-830.02,0.00015795,2]
[398045662,1765336238398,-765.51,0.00015795,2]
[398045664,1765336238408,-500.0,0.00015795,2]
[398045665,1765336238417,-911.31,0.00015795,2]
[398045668,1765336238426,-500.0,0.00015795,2]
[398045670,1765336238436,-563.56,0.00015795,2]
[398045671,1765336238445,-545.31134676,0.00015795,2]
[398045674,1765336238454,-500.0,0.00015795,2]
[398045676,1765336238463,-561.72,0.00015795,2]
[398045677,1765336238472,-779.27,0.00015795,2]
[398045680,1765336238481,-500.0,0.00015795,2]
[398045681,1765336238491,-500.0,0.00015795,2]
[398045683,1765336238500,-1106.93,0.00015795,2]
[398045686,1765336238510,-500.0,0.00015795,2]
[398045688,1765336238520,-646.72,0.00015795,2]
[398045690,1765336238530,-500.0,0.00015795,2]
[398045692,1765336238539,-500.0,0.00015795,2]
[398045694,1765336238548,-500.0,0.00015795,2]
[398045696,1765336238558,-500.0,0.00015795,2]
[398045698,1765336238567,-500.0,0.00015795,2]
[398045700,1765336238575,-500.0,0.00015795,2]
[398045701,1765336238584,-500.0,0.00015795,2]
[398045703,1765336238594,-2646.63,0.00015795,2]
[398045705,1765336238603,-501.27,0.00015795,2]
[398045708,1765336238613,-500.0,0.00015795,2]
[398045710,1765336238622,-500.0,0.00015795,2]
[398045711,1765336238631,-531.97,0.00015795,2]
[398045714,1765336238641,-953.44,0.00015795,2]
[398045715,1765336238650,-960.03,0.00015795,2]
[398045718,1765336238660,-500.0,0.00015795,2]
[398045720,1765336238669,-500.0,0.00015795,2]
[398045722,1765336238678,-500.0,0.00015795,2]
[398045723,1765336238688,-500.0,0.00015795,2]
[398045724,1765336238698,-500.0,0.00015795,2]
[398045725,1765336238707,-500.0,0.00015795,2]
[398045726,1765336238716,-500.0,0.00015795,2]
[398045727,1765336238725,-237.23336644,0.00015795,2]
[398045728,1765336238734,-500.0,0.00015795,2]
[398045729,1765336238743,-500.0,0.00015795,2]
[398045730,1765336238751,-199.55900663,0.00015795,2]
[398045731,1765336238761,-194.32288241,0.00015795,2]
[398045732,1765336238770,-500.0,0.00015795,2]
[398045733,1765336238779,-500.0,0.00015795,2]
[398045734,1765336238788,-500.0,0.00015795,2]
[398045735,1765336238797,-500.0,0.00015795,2]
[398045736,1765336238806,-500.0,0.00015795,2]
[398045737,1765336238815,-500.0,0.00015795,2]
[398045738,1765336238824,-500.0,0.00015795,2]
[398045739,1765336238833,-500.0,0.00015795,2]
[398045740,1765336238842,-500.0,0.00015795,2]
[398045741,1765336238852,-500.0,0.00015795,2]
[398045742,1765336238863,-500.0,0.00015795,2]
[398045743,1765336238872,-500.0,0.00015795,2]
[398045744,1765336238881,-500.0,0.00015795,2]
[398045745,1765336238890,-500.0,0.00015795,2]
[398045746,1765336238900,-500.0,0.00015795,2]
[398045747,1765336238910,-500.0,0.00015795,2]
[398045748,1765336238919,-500.0,0.00015795,2]
[398045749,1765336238928,-500.0,0.00015795,2]
[398045750,1765336238937,-500.0,0.00015795,2]
[398045751,1765336238946,-500.0,0.00015795,2]
[398045752,1765336238956,-500.0,0.00015795,2]
[398045754,1765336238964,-500.0,0.00015795,2]
[398045756,1765336238973,-500.0,0.00015795,2]
[398045758,1765336238982,-500.0,0.00015795,2]
[398045759,1765336238991,-500.0,0.00015795,2]
[398045761,1765336239000,-500.0,0.00015795,2]
[398045763,1765336239010,-500.0,0.00015795,2]
[398045765,1765336239019,-500.0,0.00015795,2]
[398045767,1765336239029,-500.0,0.00015795,2]
[398045768,1765336239039,-500.0,0.00015795,2]
[398045769,1765336239053,-500.0,0.00015795,2]
[398045770,1765336239063,-500.0,0.00015795,2]
[398045771,1765336239073,-500.0,0.00015795,2]
[398045772,1765336239083,-500.0,0.00015795,2]
[398045773,1765336239094,-500.0,0.00015795,2]
[398045774,1765336239103,-500.0,0.00015795,2]
[398045775,1765336239113,-500.0,0.00015795,2]
[398045776,1765336239123,-384.34031467,0.00015795,2]
[398045777,1765336239141,-115.65968533,0.00015795,2]
[398045778,1765336239150,-500.0,0.00015795,2]
[398045779,1765336239160,-500.0,0.00015795,2]
[398045780,1765336239174,-500.0,0.00015795,2]
[398045781,1765336239184,-500.0,0.00015795,2]
[398045782,1765336239193,-500.0,0.00015795,2]
[398045783,1765336239202,-500.0,0.00015795,2]
[398045784,1765336239212,-500.0,0.00015795,2]
[398045785,1765336239222,-557.52092138,0.00015795,2]
[398045786,1765336239231,-500.0,0.00015796,2]
[398045787,1765336239242,-500.0,0.00015796,2]
[398045788,1765336239253,-501.03654554,0.00015796,2]
[398045789,1765336239263,-505.91967128,0.00015796,2]
[398045790,1765336239273,-500.0,0.00015796,2]
[398045791,1765336239283,-500.0,0.00015796,2]
[398045792,1765336239292,-501.8945207,0.00015796,2]
[398045793,1765336239302,-500.0,0.00015796,2]
[398045794,1765336239311,-500.0,0.00015796,2]
[398045795,1765336239320,-500.0,0.00015796,2]
[398045796,1765336239330,-500.0,0.00015796,2]
[398045797,1765336239339,-500.0,0.00015796,2]
[398045798,1765336239349,-500.0,0.00015796,2]
[398045799,1765336239358,-500.0,0.00015796,2]
[398045800,1765336239368,-500.0,0.00015796,2]
[398045801,1765336239377,-511.69592661,0.00015796,2]
[398045802,1765336239387,-500.0,0.00015796,2]
[398045803,1765336239396,-500.0,0.00015796,2]
[398045804,1765336239406,-371.6504074,0.00015796,2]
[398045805,1765336239421,-132.41144235,0.00015796,2]
[398045806,1765336239430,-500.0,0.00015796,2]
[398045807,1765336239439,-500.0,0.00015796,2]
[398045808,1765336239448,-500.0,0.00015796,2]
[398045809,1765336239457,-500.0,0.00015796,2]
[398045810,1765336239467,-626.57,0.00015796,2]
[398045811,1765336239476,-500.0,0.00015796,2]
[398045812,1765336239485,-229.50853843,0.00015796,2]
[398045813,1765336239494,-500.0,0.00015796,2]
[398045814,1765336239504,-500.0,0.00015796,2]
[398045815,1765336239513,-500.0,0.00015796,2]
[398045816,1765336239523,-500.0,0.00015796,2]
[398045817,1765336239531,-500.0,0.00015796,2]
[398045818,1765336239540,-500.0,0.00015796,2]
[398045819,1765336239551,-504.25640853,0.00015796,2]
[398045820,1765336239560,-567.74,0.00015796,2]
[398045821,1765336239570,-500.0,0.00015796,2]
[398045822,1765336239579,-485.08989816,0.00015796,2]
[398045823,1765336239590,-500.0,0.00015796,2]
[398045824,1765336239600,-402.8611224,0.00015796,2]
[398045825,1765336239610,-500.0,0.00015796,2]
[398045826,1765336239620,-500.0,0.00015796,2]
[398045827,1765336239629,-500.0,0.00015796,2]
[398045828,1765336239639,-552.1,0.00015796,2]
[398045829,1765336239648,-500.0,0.00015796,2]
[398045830,1765336239658,-500.0,0.00015796,2]
[398045831,1765336239667,-500.0,0.00015796,2]
[398045832,1765336239676,-243.53809813,0.00015796,2]
[398045833,1765336239686,-500.0,0.00015796,2]
[398045834,1765336239696,-500.0,0.00015796,2]
[398045835,1765336239705,-500.0,0.00015796,2]
[398045836,1765336239715,-500.0,0.00015796,2]
[398045837,1765336239724,-500.0,0.00015796,2]
[398045838,1765336239734,-500.0,0.00015796,2]
[398045839,1765336239743,-500.0,0.00015796,2]
[398045840,1765336239753,-54.20902091,0.00015796,2]
[398045841,1765336239766,-445.79097909,0.00015796,2]
[398045842,1765336239775,-500.0,0.00015796,2]
[398045843,1765336239785,-500.0,0.00015796,2]
[398045844,1765336239794,-500.0,0.00015796,2]
[398045845,1765336239803,-500.0,0.00015796,2]
[398045846,1765336239812,-500.0,0.00015796,2]
[398045847,1765336239822,-500.0,0.00015796,2]
[398045848,1765336239832,-501.96860597,0.00015796,2]
[398045849,1765336239841,-500.0,0.00015796,2]
[398045850,1765336239851,-500.0,0.00015796,2]
[398045851,1765336239860,-500.0,0.00015796,2]
[398045852,1765336239870,-500.0,0.00015796,2]
[398045853,1765336239879,-500.0,0.00015796,2]
[398045854,1765336239888,-500.0,0.00015796,2]
[398045855,1765336239898,-512.83922942,0.00015796,2]
[398045856,1765336239907,-500.0,0.00015796,2]
[398045857,1765336239916,-7.12589046,0.00015796,2]
[398045858,1765336239929,-492.87410954,0.00015796,2]
[398045859,1765336239938,-702.03,0.00015796,2]
[398045860,1765336239947,-500.0,0.00015796,2]
[398045861,1765336239956,-500.0,0.00015796,2]
[398045862,1765336239966,-603.41,0.00015796,2]
[398045863,1765336239977,-500.0,0.00015796,2]
[398045864,1765336239987,-500.0,0.00015796,2]
[398045865,1765336239997,-503.2959591,0.00015796,2]
[398045866,1765336240006,-640.09,0.00015796,2]
[398045867,1765336240016,-596.18845167,0.00015796,2]
[398045868,1765336240026,-500.0,0.00015796,2]
[398045869,1765336240037,-511.47846494,0.00015796,2]
[398045870,1765336240229,-500.0,0.00015796,2]
[398045871,1765336240240,-500.0,0.00015796,2]
[398045872,1765336240250,-500.0,0.00015796,2]
[398045873,1765336240260,-709.14,0.00015796,2]
[398045874,1765336240269,-500.0,0.00015796,2]
[398045875,1765336240278,-500.0,0.00015796,2]
[398045876,1765336240288,-500.0,0.00015796,2]
[398045877,1765336240297,-500.0,0.00015796,2]
[398045878,1765336240307,-693.78088601,0.00015796,2]
[398045880,1765336240700,-500.0,0.00015795,2]
[398045881,1765336240717,-600.46,0.00015795,2]
[398045882,1765336240727,-242.60911399,0.00015796,2]
[398045883,1765336240743,-331.31347598,0.00015796,2]
[398045884,1765336240766,-168.68652402,0.00015796,2]
[398045885,1765336240775,-500.0,0.00015796,2]
[398045886,1765336240784,-495.61475859,0.00015796,2]
[398045887,1765336240793,-500.0,0.00015796,2]
[398045888,1765336240803,-738.23,0.00015796,2]
[398045889,1765336240813,-500.0,0.00015796,2]
[398045890,1765336240823,-500.0,0.00015796,2]
[398045891,1765336240833,-500.0,0.00015796,2]
[398045892,1765336240844,-369.0066782,0.00015796,2]
[398045893,1765336240857,-130.9933218,0.00015796,2]
[398045894,1765336240867,-500.0,0.00015796,2]
[398045895,1765336240879,-411.07578384,0.00015796,2]
[398045896,1765336240914,-224.77205721,0.00015796,2]
[398045897,1765336240923,-117.81878384,0.00015796,2]
[398045898,1765336240935,-172.35585879,0.00015796,2]
[398045899,1765336240944,-827.98,0.00015796,2]
[398045900,1765336240954,-119.80237223,0.00015796,2]
[398045901,1765336240966,-380.19762777,0.00015796,2]
[398045902,1765336240975,-553.41,0.00015796,2]
[398045903,1765336240984,-439.34232236,0.00015796,2]
[398045904,1765336240996,-60.65767764,0.00015796,2]
[398045905,1765336241006,-500.0,0.00015796,2]
[398045906,1765336241015,-500.0,0.00015796,2]
[398045907,1765336241024,-500.0,0.00015796,2]
[398045908,1765336241034,-500.0,0.00015796,2]
[398045909,1765336241046,-500.0,0.00015796,2]
[398045910,1765336241056,-500.0,0.00015796,2]
[398045911,1765336241065,-225.75884039,0.00015796,2]
[398045912,1765336241074,-500.0,0.00015796,2]
[398045913,1765336241085,-500.0,0.00015796,2]
[398045914,1765336241094,-500.0,0.00015796,2]
[398045915,1765336241104,-500.0,0.00015796,2]
[398045916,1765336241114,-500.0,0.00015796,2]
[398045917,1765336241123,-504.16100079,0.00015796,2]
[398045918,1765336241134,-500.0,0.00015796,2]
[398045919,1765336241144,-500.0,0.00015796,2]
[398045920,1765336241153,-500.0,0.00015796,2]
[398045921,1765336241163,-500.0,0.00015796,2]
[398045922,1765336241172,-500.0,0.00015796,2]
[398045923,1765336241181,-500.0,0.00015796,2]
[398045924,1765336241191,-500.0,0.00015796,2]
[398045925,1765336241200,-500.0,0.00015796,2]
[398045926,1765336241210,-500.0,0.00015796,2]
[398045927,1765336241220,-500.0,0.00015796,2]
[398045928,1765336241229,-500.0,0.00015796,2]
[398045929,1765336241239,-500.0,0.00015796,2]
[398045930,1765336241248,-500.0,0.00015796,2]
[398045931,1765336241258,-500.0,0.00015796,2]
[398045932,1765336241267,-500.0,0.00015796,2]
[398045933,1765336241276,-500.0,0.00015796,2]
[398045934,1765336241285,-500.0,0.00015796,2]
[398045935,1765336241295,-514.54,0.00015796,2]
[398045936,1765336241304,-500.0,0.00015796,2]
[398045937,1765336241313,-500.0,0.00015796,2]
[398045938,1765336241322,-500.0,0.00015796,2]
[398045939,1765336241331,-500.0,0.00015796,2]
[398045940,1765336241341,-500.0,0.00015796,2]
[398045941,1765336241350,-500.0,0.00015796,2]
[398045942,1765336241359,-500.0,0.00015796,2]
[398045943,1765336241368,-500.0,0.00015796,2]
[398045944,1765336241378,-500.0,0.00015796,2]
[398045945,1765336241388,-500.0,0.00015796,2]
[398045946,1765336241397,-500.0,0.00015796,2]
[398045947,1765336241406,-500.0,0.00015796,2]
[398045948,1765336241415,-500.0,0.00015796,2]
[398045949,1765336241425,-502.92340144,0.00015796,2]
[398045950,1765336241434,-500.0,0.00015796,2]
[398045951,1765336241443,-503.18608497,0.00015796,2]
[398045952,1765336241452,-500.0,0.00015796,2]
[398045953,1765336241461,-822.63,0.00015796,2]
[398045954,1765336241470,-500.0,0.00015796,2]
[398045955,1765336241480,-500.0,0.00015796,2]
[398045956,1765336241489,-500.0,0.00015796,2]
[398045957,1765336241499,-500.0,0.00015796,2]
[398045958,1765336241508,-500.0,0.00015796,2]
[398045959,1765336241517,-572.91,0.00015796,2]
[398045960,1765336241527,-477.08062673,0.00015796,2]
[398045961,1765336241539,-500.0,0.00015796,2]
[398045962,1765336241550,-500.0,0.00015796,2]
[398045963,1765336241559,-587.2346556,0.00015796,2]
[398045964,1765336241569,-500.0,0.00015796,2]
[398045965,1765336241578,-500.0,0.00015796,2]
[398045966,1765336241588,-500.0,0.00015796,2]
[398045967,1765336241597,-500.0,0.00015796,2]
[398045968,1765336241607,-536.27,0.00015796,2]
[398045969,1765336241616,-500.0,0.00015796,2]
[398045970,1765336241625,-500.0,0.00015796,2]
[398045971,1765336241634,-612.64,0.00015796,2]
[398045972,1765336241643,-500.0,0.00015796,2]
[398045973,1765336241653,-500.0,0.00015796,2]
[398045974,1765336241663,-500.0,0.00015796,2]
[398045975,1765336241672,-500.0,0.00015796,2]
[398045976,1765336241682,-1000.0,0.00015796,2]
[398045977,1765336241691,-530.9,0.00015796,2]
[398045978,1765336241700,-500.0,0.00015796,2]
[398045979,1765336241710,-500.0,0.00015796,2]
[398045980,1765336241719,-500.0,0.00015796,2]
[398045981,1765336241731,-500.0,0.00015796,2]
[398045982,1765336241740,-506.5937603,0.00015796,2]
[398045983,1765336241750,-596.04634561,0.00015796,2]
[398045984,1765336241759,-500.0,0.00015796,2]
[398045985,1765336241768,-500.0,0.00015796,2]
[398045986,1765336241777,-500.0,0.00015796,2]
[398045987,1765336241786,-500.0,0.00015796,2]
[398045988,1765336241796,-744.16,0.00015796,2]
[398045989,1765336241806,-500.0,0.00015796,2]
[398045990,1765336241815,-500.0,0.00015796,2]
[398045991,1765336241824,-500.0,0.00015796,2]
[398045992,1765336241834,-500.0,0.00015796,2]
[398045993,1765336241844,-579.04471326,0.00015796,2]
[398045994,1765336241853,-500.0,0.00015796,2]
[398045995,1765336241863,-500.0,0.00015796,2]
[398045996,1765336241872,-500.0,0.00015796,2]
[398045997,1765336241883,-495.0944424,0.00015796,2]
[398045998,1765336241892,-500.0,0.00015796,2]
[398045999,1765336241902,-394.92372694,0.00015796,2]
[398046000,1765336241911,-500.0,0.00015796,2]
[398046001,1765336241921,-500.0,0.00015796,2]
[398046002,1765336241930,-500.0,0.00015796,2]
[398046003,1765336241939,-500.0,0.00015796,2]
[398046004,1765336241948,-500.0,0.00015796,2]
[398046005,1765336241958,-500.0,0.00015796,2]
[398046006,1765336241967,-575.37,0.00015796,2]
[398046007,1765336241976,-500.0,0.00015796,2]
[398046008,1765336241985,-588.02,0.00015796,2]
[398046009,1765336241994,-507.49718427,0.00015796,2]
[398046010,1765336242004,-506.1941338,0.00015796,2]
[398046011,1765336242013,-500.0,0.00015796,2]
[398046012,1765336242022,-500.0,0.00015796,2]
[398046013,1765336242032,-500.0,0.00015796,2]
[398046014,1765336242045,-500.0,0.00015796,2]
[398046015,1765336242055,-778.1,0.00015796,2]
[398046016,1765336242064,-500.0,0.00015796,2]
[398046017,1765336242074,-500.0,0.00015796,2]
[398046018,1765336242085,-282.92015657,0.00015796,2]
[398046019,1765336242094,-500.0,0.00015796,2]
[398046020,1765336242102,-500.0,0.00015796,2]
[398046021,1765336242112,-500.0,0.00015796,2]
[398046022,1765336242122,-500.0,0.00015796,2]
[398046023,1765336242133,-688.34,0.00015796,2]
[398046024,1765336242142,-500.0,0.00015796,2]
[398046025,1765336242152,-500.0,0.00015796,2]
[398046026,1765336242161,-506.23206351,0.00015796,2]
[398046027,1765336242171,-456.03399781,0.00015796,2]
[398046028,1765336242180,-334.32906232,0.00015796,2]
[398046029,1765336242190,-545.37,0.00015796,2]
[398046030,1765336242199,-500.0,0.00015796,2]
[398046031,1765336242208,-509.69188851,0.00015796,2]
[398046032,1765336242217,-500.0,0.00015796,2]
[398046033,1765336242233,-500.0,0.00015796,2]
[398046034,1765336242252,-512.93,0.00015796,2]
[398046035,1765336242263,-500.0,0.00015796,2]
[398046036,1765336242272,-500.0,0.00015796,2]
[398046037,1765336242282,-500.0,0.00015796,2]
[398046038,1765336242291,-546.356446,0.00015796,2]
[398046039,1765336242300,-500.0,0.00015796,2]
[398046040,1765336242309,-500.0,0.00015796,2]
[398046041,1765336242319,-500.0,0.00015796,2]
[398046042,1765336242328,-157.327421,0.00015796,2]
[398046043,1765336242337,-500.0,0.00015796,2]
[398046044,1765336242347,-500.0,0.00015796,2]
[398046045,1765336242356,-500.0,0.00015796,2]
[398046046,1765336242366,-500.0,0.00015796,2]
[398046047,1765336242375,-1028.3,0.00015796,2]
[398046048,1765336242385,-500.0,0.00015796,2]
[398046049,1765336242394,-500.0,0.00015796,2]
[398046050,1765336242403,-500.0,0.00015796,2]
[398046051,1765336242412,-585.34,0.00015796,2]
[398046052,1765336242421,-500.0,0.00015796,2]
[398046053,1765336242431,-1155.067391,0.00015796,2]
[398046054,1765336242619,-508.04164913,0.00015796,2]
[398046055,1765336242629,-500.0,0.00015796,2]
[398046056,1765336242639,-843.21,0.00015796,2]
[398046057,1765336242648,-159.497034,0.00015796,2]
[398046058,1765336242658,-1274.204069,0.00015796,2]
[398046059,1765336242667,-500.0,0.00015796,2]
[398046060,1765336242676,-500.0,0.00015796,2]
[398046061,1765336242686,-500.0,0.00015796,2]
[398046062,1765336242696,-500.0,0.00015796,2]
[398046063,1765336242706,-500.0,0.00015796,2]
[398046065,1765336242716,-856.432049,0.00015796,2]
[398046066,1765336242725,-500.0,0.00015796,2]
[398046067,1765336242735,-500.0,0.00015796,2]
[398046068,1765336242745,-500.0,0.00015796,2]
[398046069,1765336242756,-500.0,0.00015796,2]
[398046070,1765336242765,-570.9646165,0.00015796,2]
[398046071,1765336242775,-500.0,0.00015796,2]
[398046072,1765336242784,-544.37,0.00015796,2]
[398046073,1765336242793,-679.16,0.00015796,2]
[398046074,1765336242803,-500.0,0.00015796,2]
[398046075,1765336242812,-500.0,0.00015796,2]
[398046076,1765336242822,-501.16602739,0.00015796,2]
[398046077,1765336242831,-537.21,0.00015796,2]
[398046079,1765336242840,-500.0,0.00015796,2]
[398046081,1765336242849,-504.12097961,0.00015796,2]
[398046083,1765336242858,-682.94,0.00015796,2]
[398046084,1765336242868,-538.76,0.00015796,2]
[398046085,1765336242877,-500.0,0.00015796,2]
[398046086,1765336242887,-802.69,0.00015796,2]
[398046087,1765336242896,-500.0,0.00015796,2]
[398046088,1765336242905,-500.0,0.00015796,2]
[398046089,1765336242915,-693.85,0.00015796,2]
[398046090,1765336242924,-500.0,0.00015796,2]
[398046091,1765336242934,-500.0,0.00015796,2]
[398046092,1765336242944,-500.0,0.00015796,2]
[398046093,1765336242954,-500.0,0.00015796,2]
[398046094,1765336242963,-500.0,0.00015796,2]
[398046095,1765336242973,-500.0,0.00015796,2]
[398046096,1765336242982,-500.0,0.00015796,2]
[398046097,1765336242991,-500.0,0.00015796,2]
[398046098,1765336243000,-207.68380987,0.00015796,2]
[398046099,1765336243011,-500.0,0.00015796,2]
[398046100,1765336243020,-500.0,0.00015796,2]
[398046101,1765336243029,-780.78,0.00015796,2]
[398046102,1765336243040,-500.0,0.00015796,2]
[398046103,1765336243054,-500.0,0.00015796,2]
[398046104,1765336243063,-500.0,0.00015796,2]
[398046105,1765336243072,-500.0,0.00015796,2]
[398046106,1765336243085,-514.36619034,0.00015796,2]
[398046107,1765336243096,-504.77489294,0.00015796,2]
[398046108,1765336243107,-500.0,0.00015796,2]
[398046109,1765336243117,-500.0,0.00015796,2]
[398046110,1765336243129,-500.0,0.00015796,2]
[398046111,1765336243139,-500.0,0.00015796,2]
[398046112,1765336243148,-306.82,0.00015796,2]
[398046113,1765336243157,-500.0,0.00015796,2]
[398046114,1765336243166,-500.0,0.00015796,2]
[398046115,1765336243176,-500.0,0.00015796,2]
[398046116,1765336243185,-500.0,0.00015796,2]
[398046117,1765336243194,-500.0,0.00015796,2]
[398046118,1765336243203,-614.29,0.00015796,2]
[398046119,1765336243212,-750.37,0.00015796,2]
[398046120,1765336243221,-500.0,0.00015796,2]
[398046121,1765336243230,-547.45,0.00015796,2]
[398046122,1765336243240,-525.2,0.00015796,2]